Cogmind - Beta 14 @@@ ROGUE MODE // 2024.11.12 @ 08:12:48 Player: Shimmyarah Result: Self-destructed Performance ------------- Evolutions (2) 1000 Regions Visited (4) 800 Robots Destroyed (58) 290 Value Destroyed (1309) 1309 Prototype IDs (1) 20 Alien Tech Used (0) 0 Bonus (69) 69 TOTAL SCORE: 3488 Bonus ------- High Alert Combat Kills 69 Cogmind --------- Core Integrity 485/550 Matter 271/300 Energy 265/265 System Corruption 8% Temperature Cool (8) Movement Walking (190) Ox1 Location -8/Materials Parts ------- > --- POWER (1) -------- Improved Ion Engine > --- PROPULSION (3) --- Aluminum Leg Improved Aluminum Leg > --- UTILITY (4) ------ Large Storage Unit Terrain Scanner Recoil Stabilizer Hardened Medium Armor Plating > --- WEAPON (3) ------- Heavy Particle Cannon Maul > --- INVENTORY (15) --- Light Ion Engine Light Nuclear Core Wheel VTOL Module VTOL Module VTOL Module Structural Scanner Improved Terrain Scanner Heavy Particle Cannon Heavy Particle Cannon Heavy Particle Cannon Heavy Particle Cannon Datajack Mining Laser Mining Laser Peak State ------------ > --- POWER ------------ Improved Ion Engine > --- PROPULSION ------- Aluminum Leg Improved Aluminum Leg Carbon-fiber Leg > --- UTILITY ---------- Large Storage Unit Terrain Scanner Recoil Stabilizer Hardened Medium Armor Plating > --- WEAPON ----------- Heavy Particle Cannon Heavy Particle Cannon Heavy Particle Cannon > --- INVENTORY -------- Light Ion Engine Light Nuclear Core Wheel VTOL Module VTOL Module VTOL Module Structural Scanner Improved Terrain Scanner Heavy Particle Cannon Heavy Particle Cannon Heavy Particle Cannon Datajack Mining Laser Mining Laser Maul [Rating: 27] Favorites ----------- Power Ion Engine Engine Ion Engine Propulsion Light Treads Treads Light Treads Leg Aluminum Leg Flight Unit VTOL Module Utility Large Storage Unit Device Heat Sink Storage Large Storage Unit Protection Hardened Medium Armor Plating Weapon Advanced Beam Cannon Energy Gun Beam Rifle Energy Cannon Advanced Beam Cannon Ballistic Gun Heavy Assault Rifle Launcher Grenade Launcher Special Weapon Mining Laser Impact Weapon Maul Build | -11 -10 -9 -9 -8 ------- Run | Yrd Mat Mat Min Mat Slots Evolved 4 | . . 2 . 2 Power . | . . . . . Propulsion 1 | . . . . 1 Utility 2 | . . 1 . 1 Weapon 1 | . . 1 . . Parts Attached 60 | 7 11 26 . 16 Power 5 | 1 1 3 . . Engine 5 | 1 1 3 . . Core . | . . . . . Reactor . | . . . . . Propulsion 20 | 2 1 8 . 9 Treads 9 | 2 1 5 . 1 Leg 8 | . . 3 . 5 Wheel . | . . . . . Hover . | . . . . . Flight 3 | . . . . 3 Utility 12 | 2 3 4 . 3 Device 6 | 1 1 2 . 2 Storage 4 | 1 2 1 . . Processor . | . . . . . Hackware . | . . . . . Protection 2 | . . 1 . 1 Artifact . | . . . . . Weapon 23 | 2 6 11 . 4 Energy Gun 2 | 1 . 1 . . Energy Cannon 11 | . 4 4 . 3 Ballistic Gun 4 | 1 1 2 . . Ballistic Cannon . | . . . . . Launcher 2 | . . 2 . . Special Weapon 2 | . 1 1 . . Impact Weapon 2 | . . 1 . 1 Slashing Weapon . | . . . . . Piercing Weapon . | . . . . . Special Melee Weapon . | . . . . . Unidentified Prototypes 1 | . 1 . . . Parts Lost 20 | . . 15 3 2 Power 2 | . . 2 . . Propulsion 5 | . . 3 1 1 Utility 4 | . . 3 1 . Weapon 9 | . . 7 1 1 Highest Loss Streak 7 | . . 7 3 2 To Critical Strikes 1 | . . . . 1 Average Slot Usage (%) 93 | . 99 89 84 93 Engine 11 | . 14 10 11 9 Treads 19 | . 27 19 20 7 Leg 4 | . . 1 . 16 Device 13 | . 14 14 10 10 Storage 14 | . 14 13 22 16 Protection 2 | . . 1 . 8 Energy Gun 1 | . . 2 . . Energy Cannon 17 | . 23 15 9 17 Ballistic Gun 3 | . 3 4 . . Impact Weapon 3 | . . 3 11 7 Peak Build Rating 27 | 8 12 17 13 27 Average Rating 14 | 5 11 13 12 22 On Entrance 8 | . 8 12 13 8 Naked Turns . | . . . . . Heaviest Build 61 | 15 34 50 46 61 Greatest Support 40 | 40 40 40 40 38 Greatest Overweight (x) 12 | . 1 12 2 5 Average Overweight (x) . | . . . 1 1 Largest Inventory Capacity 15 | 8 15 15 15 15 Average Capacity 13 | 7 12 15 15 15 Most Carried 15 | 8 11 15 8 15 Average Carried 10 | 5 9 10 7 12 Final Capacity 15 | 8 15 15 15 15 Final Carried 15 | 8 9 7 8 15 Class Distribution -------------------- 79% | Mutant 9% | Scavenger-Gunner 4% | Gunner 3% | Scavenger-Tank Dominant Class ---------------- Mutant | -10/Materials Mutant | -9/Materials Mutant | -9/Mines Mutant | -8/Materials Resources | -11 -10 -9 -9 -8 ----------- Run | Yrd Mat Mat Min Mat Matter Collected 1033 | 296 165 401 . 171 Remotely . | . . . . . Salvage Created 2008 | 149 392 1284 . 183 Parts 114 | 14 22 71 . 7 Haulers Intercepted 1 | . . 1 . . Recyclers Shooed 6 | 1 1 4 . . Parts Field Recycled . | . . . . . Retrieved Matter . | . . . . . Parts Self-Destructed . | . . . . . Prevented . | . . . . . Kills | -11 -10 -9 -9 -8 ------- Run | Yrd Mat Mat Min Mat Combat Hostiles Destroyed 37 | . 6 28 . 3 Melee 1 | . . 1 . . Guns 12 | . 2 10 . . Cannons 19 | . 4 13 . 2 AOE 2 | . . 2 . . Classes Destroyed 11 | 3 3 3 . 2 Worker 6 | 2 . 3 . 1 Builder 1 | . . . . 1 Tunneler 3 | 3 . . . . Hauler 1 | . . 1 . . Recycler 5 | 1 1 3 . . Mechanic 1 | . 1 . . . Watcher 4 | . 1 3 . . Swarmer 13 | . . 13 . . Grunt 16 | . 6 8 . 2 Sentry 7 | . . 7 . . Hunter 1 | . . . . 1 Best Kill Streak 12 | 6 4 12 . 2 Combat Bots Only 9 | . 3 9 . 2 Max Kills in Single Turn 4 | 1 2 4 . 1 Gunslinging . | . . . . . Exploded 2 | . . 2 . . Melee 1 | . . 1 . . Uniques/NPCs Destroyed . | . . . . . Combat | -11 -10 -9 -9 -8 -------- Run | Yrd Mat Mat Min Mat Hostile Shots Fired 326 | . 45 220 20 41 Missed 74 | . 10 52 . 12 Damage Taken 3170 | . 523 1938 191 518 Core 582 | . 143 348 26 65 Absorbed by Shields 157 | . . 108 49 . Regen/Repaired (Parts) 135 | . 135 . . . Core Remaining (%) 49 | 100 42 . 6 . Volleys Fired 130 | 21 26 74 . 9 Largest 3 | 2 2 3 . 3 Hottest 225 | 70 136 192 . 225 Shots Fired 244 | 42 48 136 . 18 Gun 114 | 42 14 58 . . Cannon 117 | . 31 68 . 18 Launcher 2 | . . 2 . . Special 11 | . 3 8 . . Kinetic 73 | 21 14 38 . . Thermal 153 | 21 34 80 . 18 Explosive 2 | . . 2 . . Electromagnetic 16 | . . 16 . . Robot Hit Streak 35 | 9 5 35 . 11 Robot Miss Streak 4 | 4 3 4 . 1 Penetration Max . | . . . . . Secondary Targets . | . . . . . Shots Hit Robots 161 | 23 28 91 . 19 Core Hits 68 | 7 14 41 . 6 Critical Kills 1 | . . 1 . . Critical Parts Destroyed 5 | . . 3 . 2 Critical Strikes 8 | 1 . 5 . 2 Burn 2 | 1 . 1 . . Smash 6 | . . 4 . 2 Melee Attacks 19 | . . 11 . 8 Impact 19 | . . 11 . 8 Slashing . | . . . . . Piercing . | . . . . . Sneak Attacks 4 | . . 3 . 1 Combat Hostiles . | . . . . . Follow-up Attacks . | . . . . . Damage Inflicted 3702 | 249 585 2326 . 542 Guns 1052 | 249 125 678 . . Cannons 1681 | . 436 870 . 375 Explosions 230 | . . 230 . . Melee 700 | . . 533 . 167 Ramming 15 | . . 15 . . Kinetic 627 | 85 125 417 . . Thermal 1875 | 164 460 876 . 375 Explosive 230 | . . 230 . . Electromagnetic 255 | . . 255 . . Impact 700 | . . 533 . 167 Slashing . | . . . . . Piercing . | . . . . . Highest Corruption 8 | . . . . 8 Average Corruption 6 | . . . . 6 Corruption Purged . | . . . . . Corruption Blocked . | . . . . . Overload Shots . | . . . . . Overflow Damage 318 | . . 229 . 89 Projectiles 29 | . . 29 . . Explosions . | . . . . . Melee 289 | . . 200 . 89 Knockbacks 5 | . . 4 . 1 Impact 4 | . . 3 . 1 Kinetic . | . . . . . Secondary 1 | . . 1 . . Self-Inflicted Damage 71 | . . 71 . . Shots 2 | . . 2 . . Rammed 2 | . . 2 . . Targets Rammed 2 | . . 2 . . Kicked . | . . . . . Crushed . | . . . . . Highest Temperature 829 | 180 454 829 11 458 Average Temperature 167 | 87 185 173 6 199 Received Heat Transfer 1183 | . 297 546 133 207 Effects 28 | . 8 14 . 6 Shutdowns 5 | . 2 2 . 1 Energy Bleed 3 | . . 3 . . Interference 3 | . . 3 . . Matter Decay 2 | . 1 . . 1 Short Circuit 3 | . 1 2 . . Damage (minor) 2 | . . 1 . 1 Damage (major) 9 | . 4 2 . 3 Damage (core) 1 | . . 1 . . Siege Activations . | . . . . . Robots Corrupted 6 | . . 4 . 2 Combat Hostiles 3 | . . 2 . 1 Parts Fried 4 | . . 4 . . Impact Corruptions 13 | . . 9 . 4 Robots Melted . | . . . . . Combat Hostiles . | . . . . . Parts Melted 6 | 1 1 3 . 1 Heat Transferred 3787 | 555 827 1850 . 555 Parts Sabotaged . | . . . . . Parts Stolen . | . . . . . Parts Stripped . | . . . . . Power Chain Reactions . | . . . . . Alert | -11 -10 -9 -9 -8 ------- Run | Yrd Mat Mat Min Mat Peak Influence 642 | 30 161 642 206 109 Initial 206 | . 19 8 206 68 Average 144 | 12 66 247 203 65 Maximum Alert Level 2 | . . 2 1 . Low Security (%) 75 | 100 100 51 9 100 Level 1 11 | . . 16 90 . Level 2 13 | . . 32 . . Level 3 . | . . . . . Level 4 . | . . . . . Level 5 . | . . . . . High Security . | . . . . . Max Security . | . . . . . Squads Dispatched 3 | . . 3 . . Investigation 1 | . . 1 . . Extermination . | . . . . . Reinforcement 2 | . . 2 . . Assault . | . . . . . Garrison . | . . . . . Intercept . | . . . . . Searches Triggered . | . . . . . Construction Impeded . | . . . . . Haulers Reinforced . | . . . . . Active Scanning Responses . | . . . . . Cargo Convoy Interrupts . | . . . . . Stealth | -11 -10 -9 -9 -8 --------- Run | Yrd Mat Mat Min Mat Distress Signals 7 | . . 7 . . Communications Jammed . | . . . . . Distress Signals . | . . . . . Times Spotted 75 | . 12 53 3 7 Peak Tracking Total 10 | . 3 10 3 3 Tactical Retreats 5 | . . 4 . 1 Traps | -11 -10 -9 -9 -8 ------- Run | Yrd Mat Mat Min Mat Traps Triggered 2 | . 1 1 . . Indirectly . | . . . . . Trap Hack Attempts . | . . . . . Triggered . | . . . . . Disarmed . | . . . . . Reprogrammed . | . . . . . Reused . | . . . . . Traps Extracted . | . . . . . Installed . | . . . . . Triggered . | . . . . . Machines | -11 -10 -9 -9 -8 ---------- Run | Yrd Mat Mat Min Mat Machines Disabled 3 | . 1 2 . . Max in Single Turn 1 | . 1 1 . . Machines Repaired . | . . . . . Machines Dismantled . | . . . . . Machines Sabotaged . | . . . . . Overloaded Fab Kills . | . . . . . Hacking | -11 -10 -9 -9 -8 --------- Run | Yrd Mat Mat Min Mat Machines Accessed 12 | . 7 5 . . Terminals 11 | . 6 5 . . Fabricators . | . . . . . Repair Stations 1 | . 1 . . . Recycling Units . | . . . . . Scanalyzers . | . . . . . Garrison Access . | . . . . . Total Hacks 31 | . 20 11 . . Successful 20 | . 14 6 . . Failed 11 | . 6 5 . . Catastrophic . | . . . . . Database Lockouts . | . . . . . Manual 25 | . 17 8 . . Terminals 29 | . 18 11 . . Fabricators . | . . . . . Repair Stations 2 | . 2 . . . Recycling Units . | . . . . . Scanalyzers . | . . . . . Garrison Access . | . . . . . Terminal Hacks 3 | . 2 1 . . Robot Analysis 1 | . . 1 . . Terminal Index 1 | . 1 . . . Zone Layout 1 | . 1 . . . Fabricator Hacks . | . . . . . Repair Station Hacks 2 | . 2 . . . Scan Component 1 | . 1 . . . Repair 1 | . 1 . . . Recycling Unit Hacks . | . . . . . Scanalyzer . | . . . . . Garrison Access Hacks . | . . . . . Unauthorized Hacks 15 | . 10 5 . . Terminals 15 | . 10 5 . . Track 2 | . 1 1 . . Assimilate 1 | . 1 . . . Botnet 3 | . 2 1 . . Operators 1 | . 1 . . . Skim 8 | . 5 3 . . Fabricators . | . . . . . Repair Stations . | . . . . . Recycling Units . | . . . . . Scanalyzers . | . . . . . Garrison Access . | . . . . . Data Cores Recovered . | . . . . . Used . | . . . . . Hacking Detections 10 | . 5 5 . . Full Trace Events . | . . . . . Feedback Events . | . . . . . Feedback Blocked . | . . . . . Robot Schematics Acquired . | . . . . . Robots Built . | . . . . . Authchips . | . . . . . Time . | . . . . . Total Robot Build Rating . | . . . . . Part Schematics Acquired . | . . . . . Parts Built . | . . . . . Authchips . | . . . . . Time . | . . . . . Total Part Build Rating . | . . . . . Parts Repaired 1 | . 1 . . . Time 18 | . 18 . . . Parts Recycled . | . . . . . Recycled Matter . | . . . . . Retrieved Matter . | . . . . . Retrieved Components . | . . . . . Parts Scanalyzed . | . . . . . Part Schematics Acquired . | . . . . . Parts Damaged . | . . . . . Bothacking | -11 -10 -9 -9 -8 ------------ Run | Yrd Mat Mat Min Mat Used RIF Installer . | . . . . . Robots Hacked . | . . . . . Non-combat . | . . . . . Combat . | . . . . . Robot Hacks Applied . | . . . . . Relay Couplers Released . | . . . . . Fabnet Peak Effective % . | . . . . . Robots Rewired . | . . . . . Allies Hacked . | . . . . . Hacks Repelled . | . . . . . Allies | -11 -10 -9 -9 -8 -------- Run | Yrd Mat Mat Min Mat Total Allies . | . . . . . Largest Group . | . . . . . Highest-Rated Group . | . . . . . Highest-Rated Ally . | . . . . . Total Orders . | . . . . . Ally Attacks . | . . . . . Total Damage . | . . . . . Kills . | . . . . . Allies Corrupted . | . . . . . Allies Melted . | . . . . . Intel | -11 -10 -9 -9 -8 ------- Run | Yrd Mat Mat Min Mat Robot Analysis Total 1 | . . 1 . . Derelict Logs Recovered . | . . . . . Drone Launches . | . . . . . Drone Recoveries . | . . . . . Exploration | -11 -10 -9 -9 -8 ------------- Run | Yrd Mat Mat Min Mat Turns Passed 3085 | 182 931 1278 150 544 Spaces Moved 1109 | 67 414 404 62 162 Core 13 | 9 . 4 . . Treads 924 | 58 414 367 62 23 Legs 171 | . . 33 . 138 Wheels . | . . . . . Hover . | . . . . . Flight 1 | . . . . 1 Fastest Speed 50 | 50 160 160 240 190 Average Speed 201 | 145 191 193 243 251 Slowest Speed 650 | 160 240 650 320 429 Overloaded Moves . | . . . . . Propulsion Burnouts . | . . . . . Robots Hopped . | . . . . . Cave-ins Triggered . | . . . . . Exploration Rate (%) 26 | 4 66 41 14 8 Regions Visited 4 Branch Regions 1 Pre-discovered Areas . | . . . . . Known Exits Taken 1 | . . . 1 . Unknown Exits Taken 3 | 1 1 1 . . Scrap Searched 1 | . . . 1 . Spaces Dug 7 | . . 7 . . Terrain Destroyed 31 | . 1 27 . 3 Melee . | . . . . . Projectile 11 | . 1 7 . 3 AOE 20 | . . 20 . . Terrain Rammed . | . . . . . Walls Destroyed . | . . . . . Machines Disabled . | . . . . . Actions | -11 -10 -9 -9 -8 --------- Run | Yrd Mat Mat Min Mat Total 1667 | 110 498 735 62 262 Wait 275 | . 26 197 . 52 Move 1105 | 66 413 403 61 162 Hop . | . . . . . Pick Up 57 | 15 11 17 1 13 Fast Attach 4 | 1 1 . . 2 Attach 30 | 6 1 17 . 6 Detach . | . . . . . Swap 26 | . 9 9 . 8 Drop 19 | 1 11 5 . 2 Fire 130 | 21 26 74 . 9 Melee 19 | . . 11 . 8 Ram . | . . . . . Kick . | . . . . . Crush 2 | . . 2 . . Escape Stasis . | . . . . . Rewire . | . . . . . Trap . | . . . . . Miscellaneous . | . . . . . Route ------- -11/Scrapyard -10/Materials (discovered 3 exits: *Mat x2 / [*Min]) -9/Materials -9/Mines (discovered 2 exits: *Mat x2) -8/Materials History --------- Turn | Location | Event 13 | -11/Scrapyard | Discovered new exit (range 15) 183 | -11/Scrapyard | Entered Materials 300 | -10/Materials | Build established: Mutant 338 | -10/Materials | Discovered new exit (range 15) 516 | -10/Materials | Discovered new exit (range 11) 526 | -10/Materials | Learned location of 2 exits from Mines 581 | -10/Materials | Learned location of 1 exit from Storage 626 | -10/Materials | Loaded intel: 1 recycling unit location 633 | -10/Materials | Core integrity fell below 50% 660 | -10/Materials | Loaded intel: 8 trap records 695 | -10/Materials | Learned Storage garrison access intel 697 | -10/Materials | Learned Storage stockpile data 710 | -10/Materials | Learned location of 1 exit from Recycling 731 | -10/Materials | Learned Storage stockpile data 761 | -10/Materials | Learned Storage security intel 982 | -10/Materials | Discovered new exit (range 16) 1062 | -10/Materials | Repaired Broken Lgt. Treads 1114 | -10/Materials | Entered another Materials area 1114 | -9/Materials | Evolved 2 slots: Utility x1, Weapon x1 1677 | -9/Materials | Build established: Scavenger-Gunner 1767 | -9/Materials | Lost 3 parts (1p1u1w) 1923 | -9/Materials | Lost 3 parts (1n2w) 1924 | -9/Materials | Destroyed 9 combat bots 1968 | -9/Materials | Core integrity fell below 50% 2006 | -9/Materials | Lost 7 parts (1p2n2u2w) 2154 | -9/Materials | Build established: Mutant 2218 | -9/Materials | Core integrity fell below 20% 2219 | -9/Materials | Discovered new exit (range 14) 2392 | -9/Materials | Entered Mines 2393 | -9/Mines | Identified exit to Materials 2542 | -9/Mines | Entered Materials 2542 | -8/Materials | Evolved 2 slots: Propulsion x1, Utility x1 2568 | -8/Materials | Lost 3 parts (1n1u1w) 3086 | -8/Materials | Self-destructed Last Messages --------------- 03054_ Destroyed Med. Matter Pod. 03054_ K-01 Serf system corrupted by crushing effect. 03054_ K-01 Serf knocked back. 03055_ K-01 Serf system terminally corrupted. 03060_ Critical hit (Smash). 03060_ Knocked back. 03064_ U-05 Engineer builds a Door. 03077_ Hvy. Particle Cannon destroyed. 03077_ System corrupted by crushing effect (+5). 03080_ Matter Filter disabled. 03082_ Critical hit (Smash). 03082_ Carbon-fiber Leg destroyed. 03082_ System corrupted by crushing effect (+3). 03083_ B-36 Bruiser suffers critical hit (Smash). 03083_ Destroyed Hammer. 03083_ B-36 Bruiser system corrupted by crushing effect. 03085_ Critical hit (Burn: +37). Map ----- +----------------------------------------------------+ | | | | | | | | | | | | | | | | | | | | | | | | | | | | | | | | | | | | | | | | | ????????????#???????###??????#????#??????????????? | | ????????????????????# ""#??#?????????????????????? | | ?????????????????#??#""S?????????????????????????? | | ####?????????##??####"" ###??#???????????????????? | | #?#???????????# g #??????????????????????? | | #???????????#?? """"% @#??????????????????????? | | #?????????????? """"" #??????????????????????? | | #??#??????????# """"" b#????#?????????????????? | | #????????##???# """"" #??????????????????????? | | " #????????#????# """"" #???????#??????????????? | | " #?????????????# """""g ##????#????????????????? | | " #???#????????## """"" #??????????????????????? | | #????????????## % #??????????????????????? | | ######################+###########T??????????????? | | [ ???????????? | | * = ???????????? | | ! [ ???????????? | | ##################### ##########+##????????????? | | ????????????#??? ?# #??? ????? ??????????????? | | ???????????????"""??# #????????????????????????? | | ??????????????"""???+ * + ???????????????????????? | | ????????????????????#=% # "??"? ?????????????????? | | ?????????#??????????# ! #?? ?????????????????????? | | ????????????????????# # ???????????????????????? | | ????????#???????????# #????????????????????????? | | ????????????????????# #????????????????????????? | | ????????????????????# #????????????????????????? | | ?????????????? ?????? #????????????????????????? | | ????????????????????? #????????????????????????? | | ????????????????????? #????????????????????????? | +----------------------------------------------------+ Best States ------------- Heat Dissipation 38 Energy Generation 12 Energy Capacity 265 Matter Stores 300 Matter Capacity 300 Sight Range 16 Terrain Scan Range 14 Terrain Scan Density 10 Armor Coverage 225 Evasion (%) 50 Recoil Reduction 5 Item Schematics ----------------- None Robot Schematics ------------------ None Fabricated ------------ Nothing Alien Tech Used ----------------- None Achievements -------------- None Challenges ------------ None Game ------ Seed CoolantVampiricStabilizer Manual? 0 Play Time 00:29:31 Cumulative 34.6 hours Start 2024.11.12 @ 07:46:17 End 2024.11.12 @ 08:12:48 Sessions 1 Manual Loads 0 Difficulty Rogue Special Mode None Game No. 70 Rogue 70 Adventurer 0 Explorer 0 Win Type - Total 0 Types 0/0/0/0/0/0/0/0/0 Lore% 14 Gallery% 25 Achievement% 23 Wizard Run 0 Options --------- Layout 1 ASCII 0 Keyboard 0 Movement Mouse Keybinds 0 Fullscreen 1 Font 24/Smallcaps Map View 50x40 Zoom Use 0% Tactical HUD 1 Map Filters NONE Filters NONE Steam 1 RUN: e1cb8d93-bf2b-4387-afbe-077c6fe4b668